[Event "4NCL Div 1 2024-25"]
[Site "England"]
[Date "2025.02.15"]
[Round "5.3"]
[White "Bremner, Adam"]
[Black "Royal, Shreyas"]
[Result "0-1"]
[Annotator "TA"]
[ECO "D02"]
[WhiteElo "2149"]
[BlackElo "2520"]
[PlyCount "68"]
[EventDate "2024.11.23"]
[EventType "team-tourn"]
[EventCountry "ENG"]
[SourceTitle "playchess.com"]
[Source "ChessBase"]
[SourceQuality "1"]
[TimeControl "40/6000+30:3000+30"]

{[%evp 11,68,26,45,37,31,12,2,0,11,-58,-60,-62,-53,-54,-46,-51,0,-3,0,0,0,0,0,-76,-73,-101,-25,-24,-37,-29,0,0,0,0,11,0,0,0,0,0,0,0,19,-188,-181,-734,-721,-1262,-1221,-3188,-3121,-29991,-29989,-29992,-29993,-29993,-29994,-29996,-364]} 1. Nf3 {[%emt 0:14:06]} d5 {[%emt 0:10:34]} 2. g3 {[%emt 0:01:05]} Nf6 {[%emt 0:01:47]} 3. Bg2 {[%emt 0:00:11]} c5 {[%emt 0:01:11]} 4. O-O {[%emt 0:00:11]} e6 {[%emt 0:00:05]} 5. d4 {[%emt 0:00:39]} cxd4 {[%emt 0:00:30]} 6. Nxd4 {[%emt 0:00:32]} Bc5 {[%emt 0:02:39]} 7. Nb3 {[%emt 0:05:43] D02: 1 d4 d5 2 Nf3 sidelines, including 2...Nf6 3 g3 and 2...Nf6 3 Bf4.} Bb6 {[%emt 0:02:54]} 8. Nc3 {[%emt 0:00:30]} Nc6 {[%emt 0:02:08]} 9. e4 {[%emt 0:14:23] The position is equal.} d4 {[%emt 0:00:44]} 10. Ne2 $146 {[%emt 0:06:15]} (10. Na4 $11) (10. Na4 e5 11. Nxb6 Qxb6 12. c3 Be6 13. cxd4 Bxb3 14. axb3 Nxd4 15. Be3 Rd8 16. f4 {1-0 Ponkratov,P (2593)-Babanin,G (2131) RUS-ch Blitz 2022 (3)}) 10... e5 $15 {[%emt 0:00:53]} 11. Bg5 {[%emt 0:01:39]} h6 {[%emt 0:05:41]} 12. Bxf6 {[%emt 0:00:29]} Qxf6 {[%emt 0:00:09]} (12... gxf6 13. c3 $11) 13. c3 {[%emt 0:01:30]} O-O {[%emt 0:06:39]} (13... h5 $15) 14. cxd4 $11 {[%emt 0:02:36]} exd4 {[%emt 0:00:08]} 15. Nf4 {[%emt 0:00:37]} Be6 {[%emt 0:00:55]} 16. Rc1 {[%emt 0:10:09] Prevents Bc4.} Rfd8 {[%emt 0:07:29]} 17. Nxe6 {[%emt 0:04:37]} (17. Nc5 $11 Bxc5 (17... Bxa2 18. Nxb7 Rdb8 19. b3 $14) 18. Nd5 Bxd5 19. exd5) 17... Qxe6 $17 {[%emt 0:00:42]} 18. a3 {[%emt 0:01:50]} Qe7 {[%emt 0:11:38] Wards off Nc5. Black is more active.} (18... d3 $17 19. Nc5 Qe7) 19. f4 {[%emt 0:11:06]} d3+ {[%emt 0:09:41]} 20. Kh1 {[%emt 0:00:17]} a5 {[%emt 0:03:43][%cal Ba7a5,Ba5a4][%mdl 32]} 21. e5 {[%emt 0:02:10][%cal Ob3d2]} a4 $36 {[%emt 0:00:07][%mdl 2048] White is under pressure.} 22. Nd2 {[%emt 0:07:53]} Rd4 {[%emt 0:10:37] Against Rc4} 23. Bxc6 {[%emt 0:01:58]} bxc6 {[%emt 0:00:06]} 24. Qf3 {[%emt 0:00:45]} Ba5 {[%emt 0:07:30]} 25. Rfd1 {[%emt 0:02:04]} Rad8 {[%emt 0:02:18]} 26. Qxc6 {[%emt 0:02:11]} R4d5 {[%emt 0:03:19]} 27. h4 $2 {[%emt 0:05:55] [#] Loses the game.} ({But not} 27. Qxa4 Qb7 28. Qc6 Qxb2 $17) (27. Ne4 $11) 27... Qa7 $1 $19 {[%emt 0:01:34] ...Qf2 is the strong threat.} 28. Nc4 $2 {[%emt 0:05:14]} (28. e6) 28... d2 {[%emt 0:00:58]} 29. Rb1 {[%emt 0:01:17]} Qf2 {[%emt 0:02:17]} 30. Nxa5 {[%emt 0:01:48]} Qxg3 {[%emt 0:00:10] ( -> ...Qh3+)} 31. Nb7 {[%emt 0:00:47]} Qh3+ {[%emt 0:02:53] Black mates.} 32. Kg1 {[%emt 0:00:06] [#]} Rd3 $1 {[%emt 0:00:08]} 33. Kf2 {[%emt 0:02:37]} (33. Qh1 Qe3+) 33... Qg3+ {[%emt 0:00:06]} 34. Ke2 {[%emt 0:00:45]} Re3+ $2 {[%emt 0:00:04] Weighted Error Value: White=1.04/Black=0.08 (flawless)   Loses game:     	White=1     	---        Mistake:       	White=3     	Black=2      Inaccurate:     	White=1     	Black=1      OK:         	White=6     	Black=5      Best:        	White=2     	Black=3      Strong:       	---       	Black=1} (34... Qh2+ {mates} 35. Kf1 Rg3 (35... Qxf4+ {gets mated.} 36. Kg1 Rg3+ 37. Qg2 Rdd3 38. h5 Rxg2+ 39. Kxg2 Rg3+ 40. Kh2 Qh4#) 36. Qe8+ Rxe8 37. f5 Qg2#) 0-1

[Event "4NCL Div 1 2024-25"]
[Site "England"]
[Date "2025.02.15"]
[Round "5.4"]
[White "Speelman, Jon S"]
[Black "Bezuidenhout, Roland"]
[Result "1/2-1/2"]
[Annotator "TA"]
[ECO "A33"]
[WhiteElo "2499"]
[BlackElo "2285"]
[PlyCount "83"]
[EventDate "2024.11.23"]
[EventType "team-tourn"]
[EventCountry "ENG"]
[SourceTitle "playchess.com"]
[Source "ChessBase"]
[SourceQuality "1"]
[TimeControl "40/6000+30:3000+30"]

{[%evp 14,83,9,16,14,8,48,44,47,37,40,37,43,39,47,37,82,75,115,112,107,123,119,80,95,101,132,118,106,81,118,79,79,27,22,6,116,118,119,121,125,129,169,172,186,174,184,187,186,187,161,120,119,139,141,148,137,14,11,9,11,0,0,0,0,0,0,0,0,0,0,0]} 1. Nf3 {[%emt 0:10:08]} c5 {[%emt 0:10:53]} 2. c4 {[%emt 0:00:36]} Nf6 {[%emt 0:00:57]} 3. Nc3 {[%emt 0:00:22]} Nc6 {[%emt 0:00:11]} 4. d4 {[%emt 0:00:11]} cxd4 {[%emt 0:00:07]} 5. Nxd4 {[%emt 0:00:04]} e6 {[%emt 0:00:40]} 6. a3 {[%emt 0:00:07]} d5 {[%emt 0:04:06]} 7. cxd5 {[%emt 0:01:07]} exd5 {[%emt 0:03:46]} 8. Bg5 {[%emt 0:00:13]} Bc5 {[%emt 0:04:21][%cal Bf8c5,Bc5e7,Be7d6][%mdl 32] A33: Symmetrical English: 2 Nf3 Nf6 3 d4 cxd4 4 Nxd4 e6 5 Nc3 Nc6.} 9. e3 {[%emt 0:01:27]} Nxd4 {[%emt 0:08:01]} 10. exd4 {[%emt 0:00:09]} Be7 {[%emt 0:01:29] White is slightly better.} 11. Bd3 {[%emt 0:03:15]} O-O {[%emt 0:00:24]} 12. O-O {[%emt 0:00:18][%cal Bh1f1,Bf1e1,Be1e5][%mdl 32]} h6 $146 {[%emt 0:01:25]} (12... Be6 13. Qc2 h6 14. Bh4 Qb6 15. Rfd1 Kh8 16. Be2 Rac8 17. Rac1 Rfe8 18. Qb1 Qb3 {1-0 Castro,L (1703)-Nejanky,M (1948) Florianopolis op 8th 2022 (5)}) 13. Bh4 {[%emt 0:03:01]} Be6 {[%emt 0:03:39]} 14. Re1 {[%emt 0:04:59]} Kh8 {[%emt 0:15:29]} 15. Bc2 {[%emt 0:02:03] White has more active pieces.} Bd6 {[%emt 0:01:52]} 16. Qd3 {[%emt 0:02:15]} g5 {[%emt 0:00:20]} 17. Bg3 {[%emt 0:01:28]} Bxg3 {[%emt 0:00:24]} 18. hxg3 {[%emt 0:02:22]} ({Don't do} 18. Qxg3 Rc8 $14) 18... Re8 {[%emt 0:02:44]} 19. Re5 {[%emt 0:01:58]} Rc8 {[%emt 0:08:14]} 20. Rae1 {[%emt 0:01:39][%cal Oc3d5] White has strong rooks and is better} Rg8 {[%emt 0:15:38]} 21. Bb1 {[%emt 0:07:14]} Rc6 {[%emt 0:04:34]} 22. Qf3 {[%emt 0:04:52]} Kg7 {[%emt 0:00:30]} 23. Bf5 {[%emt 0:01:05]} (23. Qd1 $16) 23... Re8 {[%emt 0:03:40]} 24. Bc2 {[%emt 0:02:59]} (24. Bxe6 {simplifies} Rcxe6 25. R1e3 Qb6 26. Nxd5 Nxd5 27. Qxd5 Qxb2 28. Rxe6 Rxe6 29. Rxe6 fxe6 30. Qd7+) 24... Rc4 {[%emt 0:04:03]} (24... Qb6 $1 $11 25. Ba4 Qxb2 26. Bxc6 bxc6) 25. Qd3 $1 $16 {[%emt 0:00:33][%cal Oc3d5]} Qb6 {[%emt 0:06:13] [#]} 26. Nxd5 $1 {[%emt 0:01:21][%mdl 512]} Bxd5 {[%emt 0:00:35]} 27. Rxe8 {[%emt 0:00:22] White attacks} Qxb2 {[%emt 0:00:18] [#]} 28. R8e2 {[%emt 0:02:14]} Rxd4 {[%emt 0:01:36]} 29. Qf5 {[%emt 0:01:07] Re7 is the strong threat.} Qb6 {[%emt 0:06:33]} 30. Re7 {[%emt 0:06:08] White threatens Qg6+ and mate.} Kf8 {[%emt 0:00:05]} 31. Qc8+ {[%emt 0:00:57]} Kg7 {[%emt 0:00:05]} 32. Qc7 {[%emt 0:00:31]} Qxc7 {[%emt 0:01:19]} 33. Rxc7 {[%emt 0:00:07]} Rd2 {[%emt 0:00:09]} 34. Rd1 {[%emt 0:00:54]} Re2 {[%emt 0:00:33] [#]} 35. g4 {[%emt 0:00:52]} Nxg4 $1 $11 {[%emt 0:01:08] The position is equal.} 36. Bf5 {[%emt 0:05:05]} (36. Rxd5 $2 Re1#) 36... Nf6 {[%emt 0:00:23]} 37. Rb1 {[%emt 0:00:12]} Bc6 {[%emt 0:01:10]} 38. Bd3 {[%emt 0:00:21]} Rd2 {[%emt 0:00:39]} 39. Bc4 {[%emt 0:00:59]} Nd5 {[%emt 0:00:42]} 40. Rcxb7 {[%emt 0:00:12]} Bxb7 {[%emt 0:00:29]} 41. Rxb7 {[%emt 0:50:05]} Rd4 {[%emt 0:50:49]} 42. Bxd5 {[%emt 0:00:10] White really could win this.   Weighted Error Value: White=0.14 (very precise) /Black=0.13 (very precise)   Mistake:       	White=2     	Black=1      Inaccurate:     	White=2     	Black=6      OK:         	White=17    	Black=9      Best:        	White=1     	Black=5      Strong:       	White=1     	Black=1      Brilliant:      	White=1     	---} 1/2-1/2

[Event "4NCL Div 1 2024-25"]
[Site "England"]
[Date "2025.02.15"]
[Round "5.4"]
[White "Jaracz, Pawel"]
[Black "Milson, Samuel A"]
[Result "1/2-1/2"]
[Annotator "TA"]
[ECO "A20"]
[WhiteElo "2473"]
[BlackElo "2069"]
[PlyCount "55"]
[EventDate "2024.11.23"]
[EventType "team-tourn"]
[EventCountry "ENG"]
[SourceTitle "playchess.com"]
[Source "ChessBase"]
[SourceQuality "1"]
[TimeControl "40/6000+30:3000+30"]

{[%evp 9,55,2,18,11,9,0,15,0,23,12,7,23,24,15,60,46,77,53,108,54,104,104,121,117,131,138,143,119,118,81,133,134,152,22,24,31,31,21,45,0,5,7,39,-17,-3,-6,-3,0]} 1. c4 {[%emt 0:10:22]} e5 {[%emt 0:10:23]} 2. g3 {[%emt 0:00:20]} Nf6 {[%emt 0:00:15]} 3. Bg2 {[%emt 0:00:05]} h6 {[%emt 0:01:01]} 4. d3 {[%emt 0:02:10]} Bb4+ {[%emt 0:03:30]} 5. Nd2 {[%emt 0:00:21]} O-O {[%emt 0:02:19]} 6. a3 {[%emt 0:00:47] A20: English Opening: 1...e5.} Bxd2+ {[%emt 0:00:45]} 7. Bxd2 {[%emt 0:00:03]} d6 {[%emt 0:00:38]} 8. Bc3 {[%emt 0:08:27]} c5 $146 {[%emt 0:04:59]} ({Predecessor:} 8... Nc6 9. b4 a6 10. Nf3 Be6 11. O-O Qd7 12. Rc1 Bh3 13. e4 Bxg2 14. Kxg2 Rfe8 {1-0 Schleef,H-Vogt,J Theme 22992 freechess.de 2021}) 9. Nf3 {[%emt 0:04:13]} Nc6 {[%emt 0:02:03]} 10. O-O {[%emt 0:01:35]} Re8 {[%emt 0:04:22]} 11. b4 {[%emt 0:14:57][%cal Bb2b4,Bb4b5][%mdl 32]} Qe7 {[%emt 0:12:04]} 12. e3 {[%emt 0:15:25]} Bd7 {[%emt 0:21:36]} 13. Qc2 {[%emt 0:10:02]} Rac8 {[%emt 0:03:00] [#]} (13... a6 $14) 14. Qb2 {[%emt 0:00:43]} (14. b5 $1 $16 {[%cal Rb5c6]}) 14... b6 {[%emt 0:01:56]} ({Black should try} 14... a6 $14) 15. b5 $16 {[%emt 0:02:22]} Nb8 {[%emt 0:03:29]} 16. a4 {[%emt 0:00:08][%cal Ba3a4,Ba4a5][%mdl 32]} Be6 {[%emt 0:03:43]} 17. a5 {[%emt 0:03:25]} Rc7 {[%emt 0:02:46]} 18. h3 {[%emt 0:01:18]} Nbd7 {[%emt 0:03:28]} 19. Nd2 {[%emt 0:00:45]} Bf5 {[%emt 0:00:57]} (19... d5 $142) 20. e4 {[%emt 0:00:24]} Bh7 {[%emt 0:03:07]} 21. f4 {[%emt 0:00:58]} (21. Rfe1 $16) 21... Nh5 $11 {[%emt 0:03:35]} 22. Rf3 {[%emt 0:01:24]} exf4 {[%emt 0:01:49]} 23. gxf4 {[%emt 0:01:56]} f5 {[%emt 0:04:05]} 24. exf5 {[%emt 0:03:32]} (24. Nf1 $5) 24... Bxf5 {[%emt 0:00:26]} 25. Nf1 {[%emt 0:00:12] Threatens to win with Re1.} Qh4 {[%emt 0:02:16]} 26. Qd2 {[%emt 0:09:18]} (26. Qf2 $14 Qxf2+ 27. Kxf2) 26... Nf8 {[%emt 0:03:43]} 27. Ne3 {[%emt 0:00:31]} Rf7 {[%emt 0:00:43]} 28. Raf1 {[%emt 0:01:14] Weighted Error Value: White=0.24 (precise) /Black=0.19 (very precise)   Mistake:       	White=3     	Black=3      Inaccurate:     	White=2     	Black=3      OK:         	White=9     	Black=7} 1/2-1/2

[Event "4NCL Div 1 2024-25"]
[Site "England"]
[Date "2025.02.15"]
[Round "5.5"]
[White "Banerjee, Supratit"]
[Black "Zhou, Yang-Fan"]
[Result "1/2-1/2"]
[Annotator "ChessBase"]
[ECO "B90"]
[WhiteElo "2141"]
[BlackElo "2418"]
[PlyCount "94"]
[EventDate "2024.11.23"]
[EventType "team-tourn"]
[EventCountry "ENG"]
[SourceTitle "playchess.com"]
[Source "ChessBase"]
[SourceQuality "1"]
[TimeControl "40/6000+30:3000+30"]

1. e4 {[%emt 0:10:06]} c5 {[%emt 0:10:04]} 2. Nf3 {[%emt 0:00:15]} d6 {[%emt 0:00:06]} 3. d4 {[%emt 0:00:09]} Nf6 {[%emt 0:00:09]} 4. Nc3 {[%emt 0:00:09]} cxd4 {[%emt 0:00:05]} 5. Nxd4 {[%emt 0:00:11]} a6 {[%emt 0:00:11]} 6. Be3 {[%emt 0:00:58]} e5 {[%emt 0:01:13]} 7. Nf3 {[%emt 0:01:22]} Be7 {[%emt 0:01:17]} 8. Bc4 {[%emt 0:02:29]} O-O {[%emt 0:00:18]} 9. O-O {[%emt 0:00:44]} Nc6 {[%emt 0:00:34]} 10. Bg5 {[%emt 0:05:51]} Be6 {[%emt 0:00:32]} 11. Qe2 {[%emt 0:06:00]} Na5 {[%emt 0:23:12]} 12. Bd3 {[%emt 0:19:50]} Nd7 {[%emt 0:04:08]} 13. Bxe7 {[%emt 0:00:55]} Qxe7 {[%emt 0:00:01]} 14. Nd5 {[%emt 0:00:46]} Qd8 {[%emt 0:00:11]} 15. Rad1 {[%emt 0:01:56]} Rc8 {[%emt 0:04:41]} 16. c3 {[%emt 0:05:04]} Kh8 {[%emt 0:09:33]} 17. Bb1 {[%emt 0:03:42]} Nc4 {[%emt 0:03:35]} 18. Rfe1 {[%emt 0:17:40]} b5 {[%emt 0:00:54]} 19. h3 {[%emt 0:05:50]} g6 {[%emt 0:00:57]} 20. b3 {[%emt 0:01:50]} Na3 {[%emt 0:07:05]} 21. Qd2 {[%emt 0:00:21]} Kg7 {[%emt 0:02:57]} 22. Ne3 {[%emt 0:03:19]} Rc6 {[%emt 0:07:35]} 23. Bd3 {[%emt 0:03:09]} Qa5 {[%emt 0:01:27]} 24. Bf1 {[%emt 0:04:32]} h6 {[%emt 0:05:33]} 25. Nd5 {[%emt 0:05:24]} Bxd5 {[%emt 0:04:05]} 26. Qxd5 {[%emt 0:00:16]} Rfc8 {[%emt 0:00:22]} 27. Rc1 {[%emt 0:05:28]} Nf6 {[%emt 0:03:01]} 28. Qd2 {[%emt 0:01:07]} Qc7 {[%emt 0:06:26]} 29. Kh2 {[%emt 0:02:52]} a5 {[%emt 0:07:38]} 30. Kg1 {[%emt 0:00:56]} Rc5 {[%emt 0:01:25]} 31. Kh1 {[%emt 0:01:38]} Rxc3 {[%emt 0:02:08]} 32. Rxc3 {[%emt 0:00:14]} Qxc3 {[%emt 0:00:02]} 33. Qxd6 {[%emt 0:00:09]} Nc2 {[%emt 0:00:04]} 34. Re2 {[%emt 0:00:39]} Nd4 {[%emt 0:02:42]} 35. Nxd4 {[%emt 0:00:52]} exd4 {[%emt 0:00:01]} 36. e5 {[%emt 0:00:12]} Ne8 {[%emt 0:01:09]} 37. Qd7 {[%emt 0:00:10]} Rc7 {[%emt 0:02:24]} 38. Qxb5 {[%emt 0:00:54]} Qa1 {[%emt 0:00:59]} 39. Rd2 {[%emt 0:00:28]} Rc1 {[%emt 0:00:23]} 40. Kg1 {[%emt 0:00:30]} Nc7 {[%emt 0:00:33]} 41. Qe2 {[%emt 0:51:01]} Ne6 {[%emt 0:24:21]} 42. f4 {[%emt 0:00:00]} Qc3 {[%emt 0:09:50]} 43. Qf2 {[%emt 0:00:00]} Kf8 {[%emt 0:11:16]} 44. g3 {[%emt 0:00:00]} d3 {[%emt 0:02:08]} 45. Qe3 {[%emt 0:00:00]} Nc5 {[%emt 0:01:05]} 46. f5 {[%emt 0:00:00]} g5 {[%emt 0:00:01]} 47. e6 {[%emt 0:00:00]} f6 {[%emt 0:01:38]} 1/2-1/2

[Event "4NCL Div 1 2024-25"]
[Site "England"]
[Date "2025.02.15"]
[Round "5.5"]
[White "Lentzos, Ioanis"]
[Black "Grieve, Harry"]
[Result "0-1"]
[Annotator "TA"]
[ECO "D30"]
[WhiteElo "2126"]
[BlackElo "2464"]
[PlyCount "42"]
[EventDate "2024.11.23"]
[EventType "team-tourn"]
[EventCountry "ENG"]
[SourceTitle "playchess.com"]
[Source "ChessBase"]
[SourceQuality "1"]
[TimeControl "40/6000+30:3000+30"]

{[%evp 21,42,0,0,0,0,0,0,0,0,-6,0,-21,-17,-24,-8,-79,-75,-91,-91,-95,-95,-558,-565]} 1. c4 {[%emt 0:10:02]} e6 {[%emt 0:10:05]} 2. g3 {[%emt 0:00:03]} d5 {[%emt 0:00:11]} 3. Bg2 {[%emt 0:00:04]} dxc4 {[%emt 0:00:09]} 4. Qa4+ {[%emt 0:00:07]} c6 {[%emt 0:00:06]} 5. Qxc4 {[%emt 0:00:04]} b5 {[%emt 0:00:15]} 6. Qb3 {[%emt 0:00:34]} Bb7 {[%emt 0:00:27]} 7. a4 {[%emt 0:00:57]} a6 {[%emt 0:00:59]} 8. Nf3 {[%emt 0:05:09]} Nd7 {[%emt 0:03:18]} 9. d4 {[%emt 0:01:48]} Ngf6 {[%emt 0:09:10]} 10. O-O {[%emt 0:01:35]} c5 {[%emt 0:00:06]} 11. axb5 {[%emt 0:03:23]} Bd5 {[%emt 0:00:07]} 12. Qc2 {[%emt 0:09:16] D30: Queen's Gambit Declined: Systems without Nc3.} axb5 {[%emt 0:00:09]} 13. Rxa8 {[%emt 0:00:06]} Qxa8 {[%emt 0:00:06]} 14. Nc3 {[%emt 0:05:24] The position is equal.} Bc6 {[%emt 0:00:06] With the idea ...b4.} 15. b3 {[%emt 0:00:35]} Be7 {[%emt 0:11:53]} 16. dxc5 {[%emt 0:12:26]} (16. Be3 $5) 16... Bxc5 {[%emt 0:05:48]} 17. Bb2 $146 {[%emt 0:05:41]} (17. Ne1 Bxg2 18. Nxg2 Qc6 19. Qd3 O-O 20. Bb2 Rb8 21. Nf4 {0-1 Salomon,J (2308)-Guo,Q (2451) Gibraltar Masters 12th 2014 (4)}) 17... O-O {[%emt 0:04:28]} 18. Nxb5 {[%emt 0:07:03]} Bxb5 $17 {[%emt 0:03:45]} 19. Bxf6 {[%emt 0:01:10] [#]} Bxf2+ $1 {[%emt 0:09:03]} ({Don't play} 19... gxf6 $6 20. Ng5 $14) (19... Nxf6 20. Qxc5 Bxe2 21. Nd4 $14) 20. Rxf2 {[%emt 0:08:28] Strongly threatening Ng5.} Nxf6 {[%emt 0:00:14]} 21. Nd4 $2 {[%emt 0:01:38][%mdl 8192]} (21. b4 $17 {is tougher.}) 21... Qa1+ {[%emt 0:00:17] Weighted Error Value: White=0.63/Black=0.00 (flawless)   Loses game:     	White=1     	---        Mistake:       	White=1     	---        OK:         	White=4     	Black=4      Best:        	White=1     	Black=2      Strong:       	---       	Black=1} 0-1

[Event "4NCL Div 1 2024-25"]
[Site "England"]
[Date "2025.02.15"]
[Round "5.6"]
[White "Cyborowski, Lukasz"]
[Black "Morea, Georgiana-Steluta"]
[Result "1-0"]
[Annotator "ChessBase"]
[ECO "B09"]
[WhiteElo "2454"]
[BlackElo "1941"]
[PlyCount "51"]
[EventDate "2024.11.23"]
[EventType "team-tourn"]
[EventCountry "ENG"]
[SourceTitle "playchess.com"]
[Source "ChessBase"]
[SourceQuality "1"]
[TimeControl "40/6000+30:3000+30"]

1. d4 {[%emt 0:10:08]} Nf6 {[%emt 0:10:33]} 2. Nc3 {[%emt 0:01:46]} g6 {[%emt 0:01:10]} 3. e4 {[%emt 0:03:00]} d6 {[%emt 0:02:36]} 4. f4 {[%emt 0:04:27]} Bg7 {[%emt 0:03:11]} 5. Bd3 {[%emt 0:00:48]} O-O {[%emt 0:02:38]} 6. Nf3 {[%emt 0:00:42]} b6 {[%emt 0:04:28]} 7. Qe2 {[%emt 0:13:07]} Bb7 {[%emt 0:03:25]} 8. e5 {[%emt 0:06:13]} dxe5 {[%emt 0:02:35]} 9. dxe5 {[%emt 0:01:31]} Nd5 {[%emt 0:00:14]} 10. Bd2 {[%emt 0:01:46]} c5 {[%emt 0:14:01]} 11. O-O-O {[%emt 0:05:05]} Qc8 {[%emt 0:02:41]} 12. Kb1 {[%emt 0:19:32]} a6 {[%emt 0:03:47]} 13. f5 {[%emt 0:10:45]} b5 {[%emt 0:23:26]} 14. e6 {[%emt 0:03:00]} fxe6 {[%emt 0:05:13]} 15. fxg6 {[%emt 0:02:15]} h6 {[%emt 0:00:52]} 16. Ne5 {[%emt 0:17:16]} c4 {[%emt 0:07:03]} 17. Be4 {[%emt 0:00:04]} b4 {[%emt 0:01:01]} 18. Nxd5 {[%emt 0:00:10]} exd5 {[%emt 0:00:14]} 19. Bf3 {[%emt 0:00:02]} Qf5 {[%emt 0:05:54]} 20. Nxc4 {[%emt 0:00:43]} dxc4 {[%emt 0:00:55]} 21. Qxc4+ {[%emt 0:01:41]} Kh8 {[%emt 0:00:35]} 22. Bxb7 {[%emt 0:00:11]} Ra7 {[%emt 0:00:28]} 23. Rhf1 {[%emt 0:00:55]} Qh5 {[%emt 0:02:24]} 24. Rxf8+ {[%emt 0:00:45]} Bxf8 {[%emt 0:00:03]} 25. Rf1 {[%emt 0:02:03]} Nd7 {[%emt 0:00:46]} 26. Qf7 {[%emt 0:00:30]} 1-0

[Event "4NCL Div 1 2024-25"]
[Site "England"]
[Date "2025.02.15"]
[Round "5.6"]
[White "Houska, Jovanka"]
[Black "Finn, Peter"]
[Result "1-0"]
[Annotator "ChessBase"]
[ECO "D30"]
[WhiteElo "2344"]
[BlackElo "2199"]
[PlyCount "63"]
[EventDate "2024.11.23"]
[EventType "team-tourn"]
[EventCountry "ENG"]
[SourceTitle "playchess.com"]
[Source "ChessBase"]
[SourceQuality "1"]
[TimeControl "40/6000+30:3000+30"]

1. d4 {[%emt 0:10:02]} Nf6 {[%emt 0:10:07]} 2. Nf3 {[%emt 0:00:25]} d5 {[%emt 0:00:17]} 3. c4 {[%emt 0:00:36]} e6 {[%emt 0:00:11]} 4. cxd5 {[%emt 0:00:05]} exd5 {[%emt 0:00:11]} 5. Qc2 {[%emt 0:00:30]} g6 {[%emt 0:10:16]} 6. Bg5 {[%emt 0:03:35]} Bf5 {[%emt 0:06:56]} 7. Qb3 {[%emt 0:00:08]} Nbd7 {[%emt 0:08:49]} 8. Nc3 {[%emt 0:01:01]} Be7 {[%emt 0:01:50]} 9. Bh6 {[%emt 0:10:04]} c6 {[%emt 0:06:49]} 10. h3 {[%emt 0:00:40]} Qb6 {[%emt 0:17:44]} 11. g4 {[%emt 0:02:23]} Be4 {[%emt 0:01:51]} 12. Bg2 {[%emt 0:06:20]} Bxf3 {[%emt 0:06:48]} 13. Bxf3 {[%emt 0:05:28]} Qxd4 {[%emt 0:01:05]} 14. Qxb7 {[%emt 0:02:07]} Rb8 {[%emt 0:05:22]} 15. Qxc6 {[%emt 0:01:04]} Rxb2 {[%emt 0:05:00]} 16. O-O {[%emt 0:16:11]} Qc5 {[%emt 0:09:11]} 17. Qxc5 {[%emt 0:02:08]} Bxc5 {[%emt 0:05:30]} 18. Rad1 {[%emt 0:11:23]} Bf8 {[%emt 0:05:19]} 19. Bc1 {[%emt 0:01:31]} Rc2 {[%emt 0:00:41]} 20. Nxd5 {[%emt 0:00:38]} Bg7 {[%emt 0:01:14]} 21. Ne3 {[%emt 0:13:48]} Rc8 {[%emt 0:02:24]} 22. g5 {[%emt 0:00:56]} Nh5 {[%emt 0:00:29]} 23. Bxh5 {[%emt 0:05:15]} gxh5 {[%emt 0:00:05]} 24. Nf5 {[%emt 0:00:08]} Bf8 {[%emt 0:01:26]} 25. Nd6+ {[%emt 0:12:41]} Bxd6 {[%emt 0:00:05]} 26. Rxd6 {[%emt 0:00:01]} Rg8 {[%emt 0:01:33]} 27. Rfd1 {[%emt 0:02:15]} Ne5 {[%emt 0:01:41]} 28. f4 {[%emt 0:00:33]} Ng6 {[%emt 0:00:33]} 29. e3 {[%emt 0:01:06]} Ne7 {[%emt 0:00:55]} 30. Bb2 {[%emt 0:00:15]} Kf8 {[%emt 0:00:36]} 31. Rd7 {[%emt 0:00:24]} Re8 {[%emt 0:00:28]} 32. Rxa7 {[%emt 0:00:20]} 1-0